[Event "Titled Tuesday Blitz October 25 Late 2022"]
[White "Romero Ruscalleda, Josep"]
[Black "Gardezi, Arsal"]
[WhiteFideId "2231859"]
[BlackFideId "30949521"]
[WhiteElo "2327"]
[BlackElo "1906"]
[Result "1-0"]
[Round "08"]
[TimeControl "180+1"]
[Date "2022.10.26"]
[WhiteClock "0:00:43"]
[BlackClock "0:00:01"]

1. e4 {[%clk 0:03:00]}  e5 {[%clk 0:02:56]} 2. Nf3 {[%clk 0:03:00]}  Nc6 {[%clk 0:02:56]} 3. Bc4 {[%clk 0:03:00]}  Nf6 {[%clk 0:02:55]} 4. d4 {[%clk 0:03:00]}  exd4 {[%clk 0:02:52]} 5. e5 {[%clk 0:03:01]}  d5 {[%clk 0:02:52]} 6. Bb5 {[%clk 0:03:01]}  Ne4 {[%clk 0:02:52]} 7. Nxd4 {[%clk 0:03:01]}  Bd7 {[%clk 0:02:52]} 8. Bxc6 {[%clk 0:03:01]}  bxc6 {[%clk 0:02:53]} 9. O-O {[%clk 0:03:01]}  Bc5 {[%clk 0:02:48]} 10. Be3 {[%clk 0:03:00]}  O-O {[%clk 0:02:39]} 11. Nd2 {[%clk 0:03:00]}  Rb8 {[%clk 0:02:39]} 12. Nxe4 {[%clk 0:02:57]}  dxe4 {[%clk 0:02:37]} 13. Nxc6 {[%clk 0:02:57]}  Bxc6 {[%clk 0:02:26]} 14. Bxc5 {[%clk 0:02:57]}  Qxd1 {[%clk 0:02:25]} 15. Rfxd1 {[%clk 0:02:55]}  Rfe8 {[%clk 0:02:25]} 16. Bd4 {[%clk 0:02:47]}  Rb4 {[%clk 0:02:25]} 17. b3 {[%clk 0:02:43]}  a5 {[%clk 0:02:12]} 18. a4 {[%clk 0:02:17]}  Rbb8 {[%clk 0:01:55]} 19. Bc3 {[%clk 0:02:14]}  Ra8 {[%clk 0:01:39]} 20. Kf1 {[%clk 0:02:13]}  h5 {[%clk 0:01:37]} 21. Ke2 {[%clk 0:02:11]}  e3 {[%clk 0:01:29]} 22. f3 {[%clk 0:02:05]}  g5 {[%clk 0:01:21]} 23. Rd3 {[%clk 0:02:04]}  g4 {[%clk 0:01:17]} 24. Rad1 {[%clk 0:01:58]}  gxf3+ {[%clk 0:01:10]} 25. gxf3 {[%clk 0:01:58]}  Kh7 {[%clk 0:01:05]} 26. Rg1 {[%clk 0:01:54]}  Bb7 {[%clk 0:00:57]} 27. Rd7 {[%clk 0:01:43]}  Rf8 {[%clk 0:00:30]} 28. Rxc7 {[%clk 0:01:40]}  Bd5 {[%clk 0:00:27]} 29. Kxe3 {[%clk 0:01:37]}  Rac8 {[%clk 0:00:25]} 30. Bxa5 {[%clk 0:01:17]}  Rxc7 {[%clk 0:00:21]} 31. Bxc7 {[%clk 0:01:17]}  Rc8 {[%clk 0:00:21]} 32. Bd6 {[%clk 0:01:05]}  Rxc2 {[%clk 0:00:21]} 33. b4 {[%clk 0:01:00]}  Ra2 {[%clk 0:00:17]} 34. a5 {[%clk 0:00:50]}  Ra3+ {[%clk 0:00:15]} 35. Kd4 {[%clk 0:00:50]}  Bxf3 {[%clk 0:00:14]} 36. Be7 {[%clk 0:00:47]}  Bc6 {[%clk 0:00:10]} 37. Bf6 {[%clk 0:00:45]}  Rd3+ {[%clk 0:00:02]} 38. Kc5 {[%clk 0:00:44]}  Bd5 {[%clk 0:00:01]} 39. a6 {[%clk 0:00:43]} 1-0


[Site "https://www.chess.com"]

[Event "Titled Tuesday Blitz October 25 Late 2022"]
[White "Rose, Felix"]
[Black "Mikhalsky, Vladimir"]
[WhiteFideId "5105722"]
[BlackFideId "14144352"]
[WhiteElo "2039"]
[BlackElo "2271"]
[Result "1-0"]
[Round "08"]
[TimeControl "180+1"]
[Date "2022.10.26"]
[WhiteClock "0:00:10"]
[BlackClock "0:00:01"]

1. e4 {[%clk 0:03:00]}  c5 {[%clk 0:02:59]} 2. Nf3 {[%clk 0:03:00]}  Nc6 {[%clk 0:02:59]} 3. d4 {[%clk 0:03:00]}  cxd4 {[%clk 0:02:59]} 4. Nxd4 {[%clk 0:03:01]}  Nf6 {[%clk 0:02:59]} 5. Nc3 {[%clk 0:03:01]}  e5 {[%clk 0:03:00]} 6. Ndb5 {[%clk 0:03:02]}  d6 {[%clk 0:03:00]} 7. Bg5 {[%clk 0:03:02]}  a6 {[%clk 0:03:00]} 8. Na3 {[%clk 0:03:02]}  b5 {[%clk 0:03:00]} 9. Nd5 {[%clk 0:03:03]}  Be7 {[%clk 0:03:00]} 10. Bxf6 {[%clk 0:03:03]}  Bxf6 {[%clk 0:03:00]} 11. c3 {[%clk 0:03:04]}  Rb8 {[%clk 0:02:59]} 12. Nc2 {[%clk 0:03:03]}  Bg5 {[%clk 0:02:59]} 13. a4 {[%clk 0:03:00]}  bxa4 {[%clk 0:02:58]} 14. Ncb4 {[%clk 0:03:00]}  Nxb4 {[%clk 0:02:54]} 15. Nxb4 {[%clk 0:03:00]}  Bd7 {[%clk 0:02:49]} 16. Bxa6 {[%clk 0:02:53]}  O-O {[%clk 0:02:42]} 17. Qxd6 {[%clk 0:02:41]}  Be7 {[%clk 0:02:40]} 18. Qd2 {[%clk 0:02:26]}  Bxb4 {[%clk 0:02:03]} 19. cxb4 {[%clk 0:02:25]}  Qb6 {[%clk 0:02:01]} 20. b5 {[%clk 0:02:15]}  Bxb5 {[%clk 0:01:57]} 21. Bxb5 {[%clk 0:02:14]}  Qxb5 {[%clk 0:01:58]} 22. O-O-O {[%clk 0:01:40]}  a3 {[%clk 0:01:50]} 23. b4 {[%clk 0:01:23]}  Rfc8+ {[%clk 0:01:45]} 24. Kb1 {[%clk 0:01:23]}  Qc4 {[%clk 0:01:40]} 25. Ka1 {[%clk 0:01:18]}  Qxe4 {[%clk 0:01:31]} 26. Rhe1 {[%clk 0:01:00]}  Qxg2 {[%clk 0:01:22]} 27. Rxe5 {[%clk 0:00:57]}  Qxh2 {[%clk 0:01:21]} 28. Rd5 {[%clk 0:00:50]}  g6 {[%clk 0:01:11]} 29. b5 {[%clk 0:00:48]}  Qh3 {[%clk 0:00:54]} 30. b6 {[%clk 0:00:44]}  Qb3 {[%clk 0:00:50]} 31. Rb1 {[%clk 0:00:33]}  Qc4 {[%clk 0:00:35]} 32. b7 {[%clk 0:00:30]}  Re8 {[%clk 0:00:34]} 33. Rd4 {[%clk 0:00:25]}  Qc6 {[%clk 0:00:34]} 34. Rd6 {[%clk 0:00:23]}  Qc7 {[%clk 0:00:32]} 35. Rd7 {[%clk 0:00:20]}  Qe5+ {[%clk 0:00:32]} 36. Ka2 {[%clk 0:00:18]}  Qe6+ {[%clk 0:00:31]} 37. Ka1 {[%clk 0:00:17]}  Qf6+ {[%clk 0:00:31]} 38. Ka2 {[%clk 0:00:16]}  Qa6 {[%clk 0:00:30]} 39. Qd3 {[%clk 0:00:09]}  Re2+ {[%clk 0:00:26]} 40. Ka1 {[%clk 0:00:10]}  Qf6+ {[%clk 0:00:25]} 41. Qd4 {[%clk 0:00:09]}  Qxd4+ {[%clk 0:00:19]} 42. Rxd4 {[%clk 0:00:10]}  Re7 {[%clk 0:00:18]} 43. Rdb4 {[%clk 0:00:09]}  Re6 {[%clk 0:00:16]} 44. Ka2 {[%clk 0:00:09]}  Ra6 {[%clk 0:00:16]} 45. Rc4 {[%clk 0:00:10]}  Kg7 {[%clk 0:00:10]} 46. Rc8 {[%clk 0:00:10]}  Rxb7 {[%clk 0:00:09]} 47. Rxb7 {[%clk 0:00:10]}  Rf6 {[%clk 0:00:09]} 48. Rc2 {[%clk 0:00:10]}  Rf3 {[%clk 0:00:09]} 49. Rb3 {[%clk 0:00:10]}  Rf5 {[%clk 0:00:09]} 50. Rxa3 {[%clk 0:00:10]}  h5 {[%clk 0:00:09]} 51. Rh3 {[%clk 0:00:10]}  Kh6 {[%clk 0:00:08]} 52. Kb2 {[%clk 0:00:11]}  g5 {[%clk 0:00:07]} 53. Kc1 {[%clk 0:00:11]}  g4 {[%clk 0:00:08]} 54. Rh1 {[%clk 0:00:11]}  Kg5 {[%clk 0:00:08]} 55. Kd2 {[%clk 0:00:11]}  h4 {[%clk 0:00:08]} 56. Ke1 {[%clk 0:00:12]}  h3 {[%clk 0:00:08]} 57. Rc3 {[%clk 0:00:12]}  Kh4 {[%clk 0:00:08]} 58. Ke2 {[%clk 0:00:11]}  Ra5 {[%clk 0:00:06]} 59. Ke3 {[%clk 0:00:09]}  f5 {[%clk 0:00:05]} 60. Rc8 {[%clk 0:00:09]}  Ra3+ {[%clk 0:00:04]} 61. Kf4 {[%clk 0:00:10]}  Rf3+ {[%clk 0:00:04]} 62. Ke5 {[%clk 0:00:10]}  Rxf2 {[%clk 0:00:04]} 63. Kf6 {[%clk 0:00:11]}  Kg3 {[%clk 0:00:04]} 64. Rc3+ {[%clk 0:00:10]}  Rf3 {[%clk 0:00:04]} 65. Rc2 {[%clk 0:00:09]}  f4 {[%clk 0:00:03]} 66. Kg5 {[%clk 0:00:10]}  Re3 {[%clk 0:00:01]} 67. Rg1+ {[%clk 0:00:09]}  Kf3 {[%clk 0:00:01]} 68. Rf1+ {[%clk 0:00:10]} 1-0


[Site "https://www.chess.com"]

[Event "Titled Tuesday Blitz October 25 Late 2022"]
[White "Shapiro, Daniel"]
[Black "Hoffmann, Asa"]
[WhiteFideId "2001780"]
[BlackFideId "2001470"]
[WhiteElo "2251"]
[BlackElo "2117"]
[Result "1-0"]
[Round "08"]
[TimeControl "180+1"]
[Date "2022.10.26"]
[WhiteClock "0:00:04"]
[BlackClock "0:00:02"]

1. d4 {[%clk 0:03:00]}  Nf6 {[%clk 0:02:54]} 2. c4 {[%clk 0:02:58]}  c5 {[%clk 0:02:48]} 3. d5 {[%clk 0:02:57]}  e5 {[%clk 0:02:47]} 4. Nc3 {[%clk 0:02:54]}  d6 {[%clk 0:02:46]} 5. e4 {[%clk 0:02:53]}  Be7 {[%clk 0:02:45]} 6. h3 {[%clk 0:02:51]}  Nbd7 {[%clk 0:02:44]} 7. Bd3 {[%clk 0:02:49]}  Nf8 {[%clk 0:02:38]} 8. g3 {[%clk 0:02:49]}  Ng6 {[%clk 0:02:38]} 9. Be3 {[%clk 0:02:45]}  O-O {[%clk 0:02:37]} 10. Nge2 {[%clk 0:02:44]}  a6 {[%clk 0:02:35]} 11. Qd2 {[%clk 0:02:40]}  Ne8 {[%clk 0:02:34]} 12. f3 {[%clk 0:02:32]}  Bd7 {[%clk 0:02:32]} 13. h4 {[%clk 0:02:31]}  Rb8 {[%clk 0:02:27]} 14. h5 {[%clk 0:02:25]}  Nh8 {[%clk 0:02:26]} 15. a4 {[%clk 0:02:11]}  b6 {[%clk 0:02:25]} 16. f4 {[%clk 0:02:07]}  Nc7 {[%clk 0:02:22]} 17. Ng1 {[%clk 0:01:58]}  Bf6 {[%clk 0:02:20]} 18. Nf3 {[%clk 0:01:56]}  b5 {[%clk 0:02:15]} 19. axb5 {[%clk 0:01:55]}  axb5 {[%clk 0:02:15]} 20. Rb1 {[%clk 0:01:45]}  bxc4 {[%clk 0:02:13]} 21. Bxc4 {[%clk 0:01:41]}  Rb4 {[%clk 0:02:12]} 22. b3 {[%clk 0:01:39]}  Bg4 {[%clk 0:02:06]} 23. Kf2 {[%clk 0:01:36]}  Qe7 {[%clk 0:02:00]} 24. Bd3 {[%clk 0:01:11]}  Rfb8 {[%clk 0:01:54]} 25. Bc2 {[%clk 0:01:09]}  h6 {[%clk 0:01:47]} 26. Ne1 {[%clk 0:00:57]}  exf4 {[%clk 0:01:43]} 27. gxf4 {[%clk 0:00:53]}  Bd4 {[%clk 0:01:32]} 28. Nd3 {[%clk 0:00:49]}  Bxc3 {[%clk 0:01:24]} 29. Qxc3 {[%clk 0:00:44]}  Rxe4 {[%clk 0:01:24]} 30. Ne5 {[%clk 0:00:27]}  Rxe3 {[%clk 0:01:16]} 31. Qxe3 {[%clk 0:00:27]}  dxe5 {[%clk 0:01:16]} 32. fxe5 {[%clk 0:00:26]}  Qg5 {[%clk 0:00:40]} 33. Qxg5 {[%clk 0:00:22]}  hxg5 {[%clk 0:00:39]} 34. d6 {[%clk 0:00:23]}  Ne6 {[%clk 0:00:39]} 35. h6 {[%clk 0:00:21]}  gxh6 {[%clk 0:00:36]} 36. Rxh6 {[%clk 0:00:20]}  Ng6 {[%clk 0:00:34]} 37. Bxg6 {[%clk 0:00:19]}  fxg6 {[%clk 0:00:33]} 38. Rxg6+ {[%clk 0:00:19]}  Kf7 {[%clk 0:00:33]} 39. Rf6+ {[%clk 0:00:19]}  Kg7 {[%clk 0:00:32]} 40. Rc1 {[%clk 0:00:17]}  Rb4 {[%clk 0:00:30]} 41. Rc3 {[%clk 0:00:16]}  Re4 {[%clk 0:00:29]} 42. Kg3 {[%clk 0:00:14]}  Rd4 {[%clk 0:00:25]} 43. Rf1 {[%clk 0:00:12]}  Bh5 {[%clk 0:00:21]} 44. Ra1 {[%clk 0:00:11]}  Rd5 {[%clk 0:00:20]} 45. Ra7+ {[%clk 0:00:09]}  Kg6 {[%clk 0:00:20]} 46. Re3 {[%clk 0:00:09]}  Bd1 {[%clk 0:00:17]} 47. Re7 {[%clk 0:00:09]}  Kf5 {[%clk 0:00:15]} 48. Rf7+ {[%clk 0:00:09]}  Kg6 {[%clk 0:00:14]} 49. Rf6+ {[%clk 0:00:09]}  Kg7 {[%clk 0:00:14]} 50. Rxe6 {[%clk 0:00:09]}  Bc2 {[%clk 0:00:13]} 51. Re7+ {[%clk 0:00:09]}  Kg6 {[%clk 0:00:13]} 52. d7 {[%clk 0:00:08]}  Bf5 {[%clk 0:00:12]} 53. e6 {[%clk 0:00:07]}  Kh5 {[%clk 0:00:10]} 54. Re8 {[%clk 0:00:07]}  Bxe6 {[%clk 0:00:09]} 55. R8xe6 {[%clk 0:00:06]}  Rxd7 {[%clk 0:00:09]} 56. R6e5 {[%clk 0:00:07]}  Rc7 {[%clk 0:00:08]} 57. Rc3 {[%clk 0:00:06]}  Rb7 {[%clk 0:00:08]} 58. Rexc5 {[%clk 0:00:06]}  Rb4 {[%clk 0:00:08]} 59. R5c4 {[%clk 0:00:06]}  Rb5 {[%clk 0:00:07]} 60. b4 {[%clk 0:00:06]}  Re5 {[%clk 0:00:07]} 61. Rb3 {[%clk 0:00:06]}  Rd5 {[%clk 0:00:06]} 62. b5 {[%clk 0:00:06]}  Rd3+ {[%clk 0:00:06]} 63. Rxd3 {[%clk 0:00:06]}  Kg6 {[%clk 0:00:05]} 64. Rd6+ {[%clk 0:00:05]}  Kf7 {[%clk 0:00:05]} 65. Rc7+ {[%clk 0:00:05]}  Ke8 {[%clk 0:00:05]} 66. Ra6 {[%clk 0:00:04]}  Kd8 {[%clk 0:00:05]} 67. Rh7 {[%clk 0:00:04]}  Kc8 {[%clk 0:00:04]} 68. Rg6 {[%clk 0:00:04]}  Kb8 {[%clk 0:00:02]} 69. Rg8# {[%clk 0:00:04]} 1-0


[Site "https://www.chess.com"]

[Event "Titled Tuesday Blitz October 25 Late 2022"]
[White "Sorokin, Aleksey"]
[Black "Piesik, Piotr"]
[WhiteFideId "24176460"]
[BlackFideId "1136194"]
[WhiteElo "2476"]
[BlackElo "2323"]
[Result "1-0"]
[Round "08"]
[TimeControl "180+1"]
[Date "2022.10.26"]
[WhiteClock "0:00:23"]
[BlackClock "0:00:03"]

1. c4 {[%clk 0:03:00]}  g6 {[%clk 0:02:58]} 2. Nc3 {[%clk 0:03:00]}  Bg7 {[%clk 0:02:57]} 3. d4 {[%clk 0:03:01]}  d6 {[%clk 0:02:56]} 4. Nf3 {[%clk 0:03:00]}  Nc6 {[%clk 0:02:54]} 5. d5 {[%clk 0:03:00]}  Ne5 {[%clk 0:02:54]} 6. Bf4 {[%clk 0:02:59]}  Nxf3+ {[%clk 0:02:48]} 7. exf3 {[%clk 0:02:59]}  Nf6 {[%clk 0:02:48]} 8. g4 {[%clk 0:02:58]}  c6 {[%clk 0:02:45]} 9. h4 {[%clk 0:02:56]}  h5 {[%clk 0:02:44]} 10. g5 {[%clk 0:02:56]}  Nd7 {[%clk 0:02:44]} 11. Bh3 {[%clk 0:02:56]}  Ne5 {[%clk 0:02:43]} 12. Qe2 {[%clk 0:02:53]}  Bxh3 {[%clk 0:02:41]} 13. Rxh3 {[%clk 0:02:53]}  Qd7 {[%clk 0:02:37]} 14. Rh1 {[%clk 0:02:52]}  O-O {[%clk 0:02:35]} 15. Bg3 {[%clk 0:02:46]}  Qf5 {[%clk 0:02:32]} 16. Bxe5 {[%clk 0:02:35]}  Bxe5 {[%clk 0:02:31]} 17. Rd1 {[%clk 0:02:28]}  Bxc3+ {[%clk 0:02:23]} 18. bxc3 {[%clk 0:02:27]}  Rfe8 {[%clk 0:02:23]} 19. Qe4 {[%clk 0:02:26]}  Qd7 {[%clk 0:02:21]} 20. Kf1 {[%clk 0:02:23]}  e6 {[%clk 0:02:19]} 21. dxc6 {[%clk 0:02:23]}  bxc6 {[%clk 0:02:19]} 22. Kg2 {[%clk 0:02:21]}  d5 {[%clk 0:02:18]} 23. Qe5 {[%clk 0:02:21]}  Qe7 {[%clk 0:02:08]} 24. Rb1 {[%clk 0:02:17]}  dxc4 {[%clk 0:02:04]} 25. Rhd1 {[%clk 0:02:11]}  Rad8 {[%clk 0:02:01]} 26. Rd4 {[%clk 0:02:07]}  Rd5 {[%clk 0:01:59]} 27. Qe4 {[%clk 0:02:07]}  Rxd4 {[%clk 0:01:53]} 28. Qxd4 {[%clk 0:02:06]}  Rd8 {[%clk 0:01:44]} 29. Qxc4 {[%clk 0:02:06]}  Qd7 {[%clk 0:01:39]} 30. Qc5 {[%clk 0:02:03]}  Qc7 {[%clk 0:01:17]} 31. c4 {[%clk 0:01:59]}  Rd3 {[%clk 0:01:14]} 32. Rb3 {[%clk 0:01:50]}  Rxb3 {[%clk 0:01:11]} 33. axb3 {[%clk 0:01:51]}  a5 {[%clk 0:01:02]} 34. Qd4 {[%clk 0:01:46]}  c5 {[%clk 0:01:00]} 35. Qe3 {[%clk 0:01:42]}  Qb6 {[%clk 0:01:00]} 36. Qd3 {[%clk 0:01:37]}  Kg7 {[%clk 0:00:46]} 37. f4 {[%clk 0:01:35]}  Qc6+ {[%clk 0:00:41]} 38. Qf3 {[%clk 0:01:32]}  Qb6 {[%clk 0:00:40]} 39. Qc3+ {[%clk 0:01:29]}  Kg8 {[%clk 0:00:39]} 40. Qd3 {[%clk 0:01:29]}  a4 {[%clk 0:00:31]} 41. bxa4 {[%clk 0:01:23]}  Qc6+ {[%clk 0:00:31]} 42. Kg3 {[%clk 0:01:14]}  Qxa4 {[%clk 0:00:32]} 43. Qd8+ {[%clk 0:01:14]}  Kg7 {[%clk 0:00:31]} 44. Qf6+ {[%clk 0:01:10]}  Kg8 {[%clk 0:00:31]} 45. Qd8+ {[%clk 0:01:10]}  Kh7 {[%clk 0:00:29]} 46. Qe7 {[%clk 0:01:09]}  Qa3+ {[%clk 0:00:25]} 47. f3 {[%clk 0:01:06]}  Kg8 {[%clk 0:00:25]} 48. Qd8+ {[%clk 0:01:04]}  Kg7 {[%clk 0:00:25]} 49. Qf6+ {[%clk 0:01:04]}  Kg8 {[%clk 0:00:26]} 50. Qe5 {[%clk 0:01:02]}  Qb4 {[%clk 0:00:24]} 51. Qe4 {[%clk 0:00:58]}  Qd2 {[%clk 0:00:22]} 52. Qe5 {[%clk 0:00:53]}  Qb4 {[%clk 0:00:19]} 53. f5 {[%clk 0:00:44]}  exf5 {[%clk 0:00:19]} 54. Qe8+ {[%clk 0:00:44]}  Kg7 {[%clk 0:00:19]} 55. Qe5+ {[%clk 0:00:45]}  Kh7 {[%clk 0:00:19]} 56. Qd5 {[%clk 0:00:41]}  Qe1+ {[%clk 0:00:18]} 57. Kf4 {[%clk 0:00:36]}  Qe7 {[%clk 0:00:13]} 58. Qe5 {[%clk 0:00:32]}  Qa7 {[%clk 0:00:13]} 59. Qd6 {[%clk 0:00:29]}  Kg7 {[%clk 0:00:12]} 60. Qe5+ {[%clk 0:00:29]}  Kg8 {[%clk 0:00:12]} 61. Qe8+ {[%clk 0:00:28]}  Kh7 {[%clk 0:00:12]} 62. Ke5 {[%clk 0:00:27]}  Kg7 {[%clk 0:00:11]} 63. Kd5 {[%clk 0:00:27]}  Qb7+ {[%clk 0:00:09]} 64. Qc6 {[%clk 0:00:27]}  Qb1 {[%clk 0:00:06]} 65. Qxc5 {[%clk 0:00:26]}  Qh1 {[%clk 0:00:04]} 66. Qd4+ {[%clk 0:00:25]}  Kf8 {[%clk 0:00:04]} 67. Kd6 {[%clk 0:00:23]}  Qxf3 {[%clk 0:00:03]} 68. Qh8# {[%clk 0:00:23]} 1-0


[Site "https://www.chess.com"]

[Event "Titled Tuesday Blitz October 25 Late 2022"]
[White "Stoyanov, Tsvetan"]
[Black "Moreno Perez, Tobias Sebastian"]
[WhiteFideId "2917173"]
[BlackFideId "186716"]
[WhiteElo "2349"]
[BlackElo "2505"]
[Result "1-0"]
[Round "08"]
[TimeControl "180+1"]
[Date "2022.10.26"]
[WhiteClock "0:00:34"]
[BlackClock "0:00:09"]

1. e4 {[%clk 0:03:00]}  c6 {[%clk 0:02:57]} 2. c4 {[%clk 0:03:00]}  d5 {[%clk 0:02:57]} 3. exd5 {[%clk 0:03:01]}  Nf6 {[%clk 0:02:55]} 4. Nf3 {[%clk 0:02:57]}  cxd5 {[%clk 0:02:55]} 5. cxd5 {[%clk 0:02:58]}  Nxd5 {[%clk 0:02:55]} 6. Nc3 {[%clk 0:02:55]}  e6 {[%clk 0:02:54]} 7. d4 {[%clk 0:02:52]}  Be7 {[%clk 0:02:54]} 8. Bd3 {[%clk 0:02:51]}  Nc6 {[%clk 0:02:53]} 9. O-O {[%clk 0:02:50]}  O-O {[%clk 0:02:53]} 10. a3 {[%clk 0:02:44]}  Bf6 {[%clk 0:02:48]} 11. Bc2 {[%clk 0:02:43]}  Nce7 {[%clk 0:02:44]} 12. Ne4 {[%clk 0:02:41]}  b6 {[%clk 0:02:39]} 13. Qd3 {[%clk 0:02:30]}  Ng6 {[%clk 0:02:27]} 14. Nxf6+ {[%clk 0:02:27]}  Nxf6 {[%clk 0:02:25]} 15. Re1 {[%clk 0:02:10]}  Bb7 {[%clk 0:02:22]} 16. Bg5 {[%clk 0:02:04]}  Qd6 {[%clk 0:02:05]} 17. Rad1 {[%clk 0:01:37]}  Rac8 {[%clk 0:01:58]} 18. Bb1 {[%clk 0:01:35]}  Rfd8 {[%clk 0:01:51]} 19. h3 {[%clk 0:01:27]}  Qd5 {[%clk 0:01:39]} 20. Qe3 {[%clk 0:01:24]}  Qb5 {[%clk 0:01:28]} 21. Ne5 {[%clk 0:01:17]}  Qd5 {[%clk 0:01:15]} 22. Qg3 {[%clk 0:01:05]}  Nh5 {[%clk 0:00:35]} 23. Qh2 {[%clk 0:01:05]}  f6 {[%clk 0:00:22]} 24. Be4 {[%clk 0:01:03]}  Qd6 {[%clk 0:00:14]} 25. Bxb7 {[%clk 0:00:57]}  Rb8 {[%clk 0:00:12]} 26. Nc6 {[%clk 0:00:37]}  Qxh2+ {[%clk 0:00:08]} 27. Kxh2 {[%clk 0:00:37]}  Rxb7 {[%clk 0:00:09]} 28. Nxd8 {[%clk 0:00:37]}  Rd7 {[%clk 0:00:09]} 29. Nxe6 {[%clk 0:00:35]}  fxg5 {[%clk 0:00:09]} 30. Nxg5 {[%clk 0:00:35]}  Nhf4 {[%clk 0:00:09]} 31. Re8+ {[%clk 0:00:34]} 1-0


[Site "https://www.chess.com"]

[Event "Titled Tuesday Blitz October 25 Late 2022"]
[White "Toncheva, Nadya"]
[Black "Kabanova, Ekaterina"]
[WhiteFideId "2924056"]
[BlackFideId "24112917"]
[WhiteElo "2101"]
[BlackElo "2141"]
[Result "0-1"]
[Round "08"]
[TimeControl "180+1"]
[Date "2022.10.26"]
[WhiteClock "0:00:03"]
[BlackClock "0:00:38"]

1. e4 {[%clk 0:03:00]}  c5 {[%clk 0:02:59]} 2. Nf3 {[%clk 0:02:59]}  e6 {[%clk 0:02:59]} 3. c3 {[%clk 0:03:00]}  a6 {[%clk 0:02:58]} 4. d4 {[%clk 0:02:59]}  Qc7 {[%clk 0:02:59]} 5. Bd3 {[%clk 0:02:57]}  b5 {[%clk 0:02:59]} 6. O-O {[%clk 0:02:53]}  Bb7 {[%clk 0:03:00]} 7. Be3 {[%clk 0:02:49]}  Nf6 {[%clk 0:03:00]} 8. Nbd2 {[%clk 0:02:47]}  d6 {[%clk 0:02:56]} 9. h3 {[%clk 0:02:42]}  Nbd7 {[%clk 0:02:55]} 10. Qe2 {[%clk 0:02:42]}  Be7 {[%clk 0:02:54]} 11. Rfe1 {[%clk 0:02:27]}  h6 {[%clk 0:02:53]} 12. Rad1 {[%clk 0:02:24]}  g5 {[%clk 0:02:52]} 13. Nh2 {[%clk 0:02:09]}  Rg8 {[%clk 0:02:49]} 14. Bb1 {[%clk 0:01:43]}  g4 {[%clk 0:02:48]} 15. hxg4 {[%clk 0:01:42]}  O-O-O {[%clk 0:02:36]} 16. Bf4 {[%clk 0:01:31]}  e5 {[%clk 0:02:34]} 17. dxe5 {[%clk 0:01:23]}  Nxe5 {[%clk 0:02:33]} 18. f3 {[%clk 0:01:11]}  Kb8 {[%clk 0:02:27]} 19. a4 {[%clk 0:01:07]}  bxa4 {[%clk 0:02:25]} 20. Nc4 {[%clk 0:01:06]}  h5 {[%clk 0:02:19]} 21. g5 {[%clk 0:01:01]}  Nh7 {[%clk 0:02:19]} 22. Bxe5 {[%clk 0:00:44]}  dxe5 {[%clk 0:02:18]} 23. Bc2 {[%clk 0:00:43]}  Nxg5 {[%clk 0:02:12]} 24. Bxa4 {[%clk 0:00:40]}  Nh3+ {[%clk 0:02:09]} 25. Kh1 {[%clk 0:00:36]}  Nf4 {[%clk 0:02:08]} 26. Rxd8+ {[%clk 0:00:26]}  Bxd8 {[%clk 0:02:03]} 27. Qd2 {[%clk 0:00:22]}  Rxg2 {[%clk 0:02:02]} 28. Qd6 {[%clk 0:00:21]}  Bh4 {[%clk 0:01:46]} 29. Rd1 {[%clk 0:00:16]}  Qxd6 {[%clk 0:01:44]} 30. Nxd6 {[%clk 0:00:14]}  Bg3 {[%clk 0:01:41]} 31. Nf1 {[%clk 0:00:12]}  Bf2 {[%clk 0:01:41]} 32. Nh2 {[%clk 0:00:11]}  h4 {[%clk 0:01:28]} 33. Nxf7 {[%clk 0:00:11]}  h3 {[%clk 0:01:27]} 34. Nxe5 {[%clk 0:00:11]}  Ne2 {[%clk 0:01:25]} 35. Nf1 {[%clk 0:00:06]}  Bc8 {[%clk 0:01:11]} 36. Nd3 {[%clk 0:00:06]}  Rg1+ {[%clk 0:01:06]} 37. Kh2 {[%clk 0:00:06]}  Rg2+ {[%clk 0:01:06]} 38. Kh1 {[%clk 0:00:06]}  Bh4 {[%clk 0:00:59]} 39. Ne5 {[%clk 0:00:04]}  Rg1+ {[%clk 0:00:53]} 40. Kh2 {[%clk 0:00:04]}  Bg3+ {[%clk 0:00:53]} 41. Nxg3 {[%clk 0:00:02]}  Rxg3 {[%clk 0:00:51]} 42. Ng4 {[%clk 0:00:02]}  Rg2+ {[%clk 0:00:50]} 43. Kxh3 {[%clk 0:00:02]}  Nf4+ {[%clk 0:00:45]} 44. Kh4 {[%clk 0:00:02]}  Rxb2 {[%clk 0:00:45]} 45. Kg5 {[%clk 0:00:02]}  Ne2 {[%clk 0:00:44]} 46. Kf6 {[%clk 0:00:02]}  Nxc3 {[%clk 0:00:45]} 47. Bc6 {[%clk 0:00:02]}  Nxd1 {[%clk 0:00:44]} 48. Ne5 {[%clk 0:00:01]}  Ne3 {[%clk 0:00:44]} 49. f4 {[%clk 0:00:02]}  Rf2 {[%clk 0:00:43]} 50. f5 {[%clk 0:00:03]}  Rf4 {[%clk 0:00:41]} 51. Nd3 {[%clk 0:00:03]}  Rf1 {[%clk 0:00:40]} 52. Nxc5 {[%clk 0:00:03]}  Kc7 {[%clk 0:00:39]} 53. Bd5 {[%clk 0:00:03]}  Nxd5+ {[%clk 0:00:39]} 54. exd5 {[%clk 0:00:03]}  Rxf5+ {[%clk 0:00:38]} 55. Ke7 {[%clk 0:00:03]}  Rxd5 {[%clk 0:00:38]} 0-1


[Site "https://www.chess.com"]